bitfinex-derivatives/quotes_BTCF0:USTF0_20241020
["timestamp","ask_amount","ask_price","bid_price","bid_amount"]
[1729444977962,0.072944,68556.0,68555.0,0.6755141]
[1729444978163,0.072944,68556.0,68555.0,0.60261402]
[1729444978353,0.072944,68556.0,68555.0,0.67551459]
[1729444978664,0.072944,68556.0,68555.0,0.67549328]
[1729444978855,0.315144,68556.0,68555.0,0.67549328]
[1729444981250,0.315144,68556.0,68555.0,0.49434211]
[1729444988258,0.39566072,68556.0,68555.0,0.49434211]
[1729444988458,0.44799282,68556.0,68555.0,0.37752886]
[1729444991164,0.39566072,68556.0,68555.0,0.37752886]
[1729444991467,0.44799282,68556.0,68555.0,0.37752886]
[1729444991967,0.44799277,68556.0,68555.0,0.37752886]
[1729444992170,0.3674761,68556.0,68555.0,0.37752886]
[1729444992359,0.4479922,68556.0,68555.0,0.37752886]
[1729444992970,0.3674761,68556.0,68555.0,0.37752886]
[1729444994365,0.315144,68556.0,68555.0,0.37752886]
[1729444994767,0.072944,68556.0,68555.0,0.37752886]
[1729444994972,0.072944,68556.0,68555.0,0.45047386]
[1729444996969,0.072944,68556.0,68555.0,0.37752886]
[1729444999366,0.03644139,68556.0,68555.0,0.48658598]
[1729445001476,0.03644139,68556.0,68555.0,0.37752886]
[1729445004281,0.11695472,68556.0,68555.0,0.10010905]
[1729445004481,0.30600501,68556.0,68555.0,0.10010905]
[1729445005685,0.11695472,68556.0,68555.0,0.10010905]
[1729445011382,0.03644139,68556.0,68555.0,0.21091172]
[1729445011686,0.03644139,68556.0,68555.0,0.11080267]
[1729445012684,0.03644139,68556.0,68555.0,0.19835137]
[1729445012886,0.03644139,68556.0,68555.0,0.11080267]
[1729445013484,0.03644139,68556.0,68555.0,0.19835054]
[1729445013886,0.03644139,68556.0,68555.0,0.11080267]
[1729445014281,0.03644139,68556.0,68555.0,0.19835211]
[1729445014483,0.03644139,68556.0,68555.0,0.11080267]
[1729445014886,0.03644139,68556.0,68555.0,0.19835397]
[1729445015087,0.03644139,68556.0,68555.0,0.11080267]
[1729445015281,0.03644139,68556.0,68555.0,0.19835396]
[1729445015785,0.03644139,68556.0,68555.0,0.11080267]
[1729445015989,0.03644139,68556.0,68555.0,0.19835396]
[1729445016177,0.39724139,68556.0,68555.0,0.19835396]
[1729445016484,0.03644139,68556.0,68555.0,0.19835396]
[1729445016686,0.03644139,68556.0,68555.0,0.11080267]
[1729445017586,0.03644139,68556.0,68555.0,0.19836435]
[1729445017780,0.03644139,68556.0,68555.0,0.11080267]
[1729445018383,0.072946,68554.0,68553.0,0.072947]
[1729445018781,0.15346016,68554.0,68553.0,0.072947]
[1729445021590,0.15346138,68554.0,68553.0,0.072947]
[1729445026396,0.072946,68554.0,68553.0,0.31563071]
[1729445026696,0.072946,68554.0,68553.0,0.31514325]
[1729445028399,0.3608,68558.0,68553.0,0.46805735]
[1729445028593,0.3608,68558.0,68555.0,0.10219446]
[1729445028594,0.072944,68556.0,68555.0,0.10219446]
[1729445028799,0.072944,68556.0,68555.0,0.49730481]
[1729445031595,0.072944,68556.0,68555.0,0.49587523]
[1729445032497,0.072944,68556.0,68555.0,0.39368077]
[1729445032804,0.072944,68556.0,68555.0,0.49587563]
[1729445033000,0.072944,68556.0,68555.0,0.24132016]
[1729445033306,0.072944,68556.0,68553.0,0.072947]
[1729445033307,0.0805143,68556.0,68553.0,0.072947]
[1729445033494,0.072946,68554.0,68553.0,0.072947]
[1729445033696,0.1534603,68554.0,68553.0,0.05475297]
[1729445036511,0.15346029,68554.0,68553.0,0.05475297]
[1729445041415,0.15346029,68554.0,68553.0,0.16502873]
[1729445041416,0.072946,68554.0,68553.0,0.16502873]
[1729445041919,0.072946,68554.0,68553.0,0.29645804]
[1729445042715,0.072946,68554.0,68553.0,0.29645736]
[1729445044216,0.03644255,68554.0,68553.0,0.29645736]
[1729445049818,0.03644255,68554.0,68553.0,0.29585964]
[1729445054216,0.03644255,68554.0,68553.0,0.29588419]
[1729445055127,0.03644255,68554.0,68553.0,0.29590774]
[1729445056320,0.03644255,68554.0,68553.0,0.05475297]
[1729445056321,0.11695786,68554.0,68553.0,0.05475297]
[1729445056618,0.11695786,68554.0,68553.0,0.04101846]
[1729445063323,0.08122778,68554.0,68553.0,0.15113087]
[1729445063527,0.03644255,68554.0,68553.0,0.15113087]
[1729445065032,0.03644255,68554.0,68553.0,0.15113109]
[1729445066925,0.06315617,68554.0,68553.0,0.15113109]
[1729445068035,0.03644255,68554.0,68553.0,0.15113109]
[1729445069326,0.03644255,68554.0,68553.0,0.28240868]
[1729445073132,0.03644255,68554.0,68553.0,0.15113109]
[1729445073329,0.03644255,68554.0,68553.0,0.28245119]
[1729445078537,0.11695879,68554.0,68549.0,0.1053975]
[1729445078742,0.03644255,68554.0,68553.0,0.072946]
[1729445078943,0.11695819,68554.0,68553.0,0.072946]
[1729445080142,0.03644255,68554.0,68553.0,0.072946]
[1729445081138,0.07217362,68554.0,68553.0,0.072946]
[1729445081348,0.11696009,68554.0,68553.0,0.072946]
[1729445085453,0.11695838,68554.0,68553.0,0.072946]
[1729445086547,0.03644255,68554.0,68553.0,0.3150008]
[1729445088758,0.03644255,68554.0,68553.0,0.072946]
[1729445089258,0.27864255,68554.0,68553.0,0.072946]
[1729445089561,0.03644255,68554.0,68553.0,0.072946]
[1729445089766,0.02589623,68558.0,68553.0,0.31474666]
[1729445089951,0.3608,68559.0,68557.0,0.08759442]
[1729445090150,0.38758874,68559.0,68556.0,0.08759442]
[1729445090361,0.072941,68558.0,68557.0,0.1103311]
[1729445090670,0.072941,68558.0,68557.0,0.11006956]
[1729445093566,0.072945,68555.0,68554.0,0.072945]
[1729445093864,0.10867378,68555.0,68554.0,0.072945]
[1729445094056,0.15345738,68555.0,68554.0,0.072945]
[1729445095567,0.1534593,68555.0,68554.0,0.072945]
[1729445097376,0.072949,68551.0,68550.0,0.072949]
[1729445097870,0.1534633,68551.0,68550.0,0.072949]
[1729445098364,0.10867863,68551.0,68550.0,0.072949]
[1729445100575,0.10867899,68551.0,68550.0,0.072949]
[1729445101669,0.072949,68551.0,68550.0,0.18303104]
[1729445107078,0.072949,68551.0,68550.0,0.1976682]
[1729445107379,0.072949,68551.0,68550.0,0.11008204]
[1729445108268,0.072949,68551.0,68550.0,0.24142448]
[1729445108879,0.072951,68549.0,68548.0,0.072952]
[1729445109075,0.1534678,68549.0,68548.0,0.072952]
[1729445109271,0.072951,68549.0,68548.0,0.072952]
[1729445110379,0.11773741,68549.0,68548.0,0.072952]
[1729445110580,0.15346843,68549.0,68548.0,0.072952]
[1729445113777,0.072951,68549.0,68548.0,0.072952]
[1729445114486,0.15346951,68549.0,68548.0,0.072952]
[1729445116686,0.3608,68556.0,68548.0,0.24150063]
[1729445116985,0.072946,68554.0,68553.0,0.08755163]
[1729445117188,0.072946,68554.0,68553.0,0.11017557]
[1729445123788,0.072948,68552.0,68543.0,0.3865736]
[1729445124087,0.07295,68550.0,68549.0,0.07295]
[1729445124392,0.15346797,68550.0,68549.0,0.07295]
[1729445130800,0.07295,68550.0,68549.0,0.31476458]
[1729445131583,0.07295,68550.0,68549.0,0.07295]
[1729445132794,0.07295,68550.0,68549.0,0.31479282]
[1729445134795,0.03644575,68550.0,68549.0,0.31479282]
[1729445138500,0.03644575,68550.0,68549.0,0.24127363]
[1729445140104,0.03644575,68550.0,68549.0,0.31422463]
[1729445145800,0.11696379,68550.0,68549.0,0.072951]
[1729445146214,0.11696379,68550.0,68549.0,0.05478879]
[1729445153817,0.02678028,68556.0,68549.0,0.44881563]
[1729445154021,0.3608,68557.0,68550.0,0.4962316]
[1729445154209,0.072948,68552.0,68551.0,0.24166024]
[1729445154518,0.072948,68552.0,68551.0,0.39422153]
[1729445159616,0.315148,68552.0,68551.0,0.39422153]
[1729445161611,0.072948,68552.0,68551.0,0.39343593]
[1729445164323,0.072948,68552.0,68551.0,0.24117008]
[1729445168723,0.08052024,68552.0,68547.0,0.072953]
[1729445169033,0.072952,68548.0,68547.0,0.072953]
[1729445169222,0.10868427,68548.0,68547.0,0.072953]
[1729445170315,0.15347223,68548.0,68547.0,0.072953]
[1729445174730,0.15347218,68548.0,68547.0,0.072953]
[1729445175819,0.072952,68548.0,68547.0,0.072953]
[1729445177428,0.09895976,68548.0,68547.0,0.072953]
[1729445178427,0.072956,68544.0,68543.0,0.0987306]
[1729445178626,0.072958,68542.0,68541.0,0.3608]
[1729445179029,0.072958,68542.0,68541.0,0.433759]
[1729445179423,0.072958,68542.0,68541.0,0.46055798]
[1729445180419,0.072958,68542.0,68541.0,0.46155798]
[1729445180826,0.072958,68542.0,68541.0,0.10075798]
[1729445181228,0.072958,68542.0,68541.0,0.02779898]
[1729445181825,0.072958,68542.0,68541.0,0.02879898]
[1729445183834,0.3608,68549.0,68541.0,0.59628848]
[1729445183835,0.2781504,68549.0,68541.0,0.59628848]
[1729445184135,0.3511014,68549.0,68548.0,0.10211779]
[1729445184436,0.3511014,68549.0,68548.0,0.49601681]
[1729445184939,0.3511014,68549.0,68548.0,0.24145394]
[1729445187837,0.37749585,68549.0,68548.0,0.24145394]
[1729445189726,0.61979585,68549.0,68548.0,0.24145394]
[1729445190434,1.05743585,68549.0,68548.0,0.11015427]
[1729445190738,1.14719585,68549.0,68548.0,0.03186331]
[1729445191039,1.15440583,68549.0,68548.0,0.0583326]
[1729445191730,0.072952,68548.0,68547.0,0.0583326]
[1729445192229,0.433752,68548.0,68547.0,0.0583326]
[1729445193929,0.072953,68547.0,68546.0,0.0583326]
[1729445196436,0.072954,68546.0,68545.0,0.0583326]
[1729445197442,0.072958,68542.0,68541.0,0.07291575]
[1729445197938,0.072953,68547.0,68540.0,0.14587675]
[1729445198139,0.072959,68541.0,68540.0,0.14587675]
[1729445198640,0.072959,68541.0,68540.0,0.072961]
[1729445198838,0.1534901,68541.0,68540.0,0.072961]
[1729445199542,0.1534901,68541.0,68540.0,0.073961]
[1729445199940,0.1534901,68541.0,68540.0,0.001]
[1729445200336,0.1534901,68541.0,68540.0,0.002]
[1729445205036,0.11775302,68541.0,68540.0,0.002]
[1729445205241,0.15349011,68541.0,68540.0,0.002]
[1729445205651,0.17995771,68541.0,68540.0,0.002]
[1729445205845,0.13516369,68541.0,68540.0,0.38907128]
[1729445206041,0.0264676,68541.0,68540.0,0.38907128]
[1729445206343,0.072959,68541.0,68540.0,0.38907128]
[1729445207343,0.072959,68541.0,68540.0,0.49119237]
[1729445207646,0.072959,68541.0,68540.0,0.38907128]
[1729445207848,0.072959,68541.0,68540.0,0.49119241]
[1729445208253,0.072959,68541.0,68540.0,0.38907128]
[1729445209350,0.09960273,68541.0,68540.0,0.38907128]
[1729445209849,0.09960273,68541.0,68540.0,0.38639785]
[1729445210249,0.09960273,68541.0,68540.0,0.23762988]
[1729445213050,0.09960273,68541.0,68540.0,0.38648913]
[1729445213257,0.09960273,68541.0,68540.0,0.48864311]
[1729445213450,0.09960273,68541.0,68540.0,0.38648913]
[1729445213848,0.02664373,68541.0,68540.0,0.38648913]
[1729445214147,0.072966,68535.0,68534.0,0.433767]
[1729445214350,0.15349814,68535.0,68534.0,0.433767]
[1729445215457,0.15449814,68535.0,68534.0,0.434767]
[1729445215657,0.15549814,68535.0,68534.0,0.435767]
[1729445217754,0.15549814,68535.0,68534.0,0.3628]
[1729445218862,0.39779814,68535.0,68534.0,0.3628]
[1729445219161,0.15549814,68535.0,68534.0,0.3628]
[1729445219657,0.1554999,68535.0,68534.0,0.3628]
[1729445220957,0.074966,68535.0,68534.0,0.86374766]
[1729445221361,0.074966,68535.0,68534.0,0.74704161]
[1729445222252,0.002,68535.0,68534.0,0.74704161]
[1729445222447,0.074966,68535.0,68534.0,0.74704161]
[1729445224456,0.074966,68535.0,68534.0,0.91577318]
[1729445225046,0.074966,68535.0,68534.0,0.55497318]
[1729445226058,0.03115212,68535.0,68534.0,0.55497318]
[1729445227268,0.03115212,68535.0,68534.0,0.55397318]
[1729445227856,0.03115212,68535.0,68534.0,0.55114826]
[1729445229165,0.03115212,68535.0,68534.0,0.1077882]
[1729445229361,0.03115212,68535.0,68534.0,0.2350522]
[1729445231365,0.03115212,68535.0,68534.0,0.1077882]
[1729445232669,0.02604702,68540.0,68534.0,0.001]
[1729445232869,0.45056,68544.0,68537.0,0.072963]
[1729445233070,0.072959,68541.0,68540.0,0.0729704]
[1729445233372,0.072959,68541.0,68540.0,0.1067731]
[1729445234863,0.45148,68544.0,68540.0,0.10673532]
[1729445235066,0.072957,68543.0,68542.0,0.07297131]
[1729445235262,0.47781939,68544.0,68541.0,0.07297131]
[1729445235463,0.072958,68542.0,68541.0,0.07297131]
[1729445235664,0.072958,68542.0,68541.0,0.10674192]
[1729445235959,0.08052983,68543.0,68537.0,0.072963]
[1729445236169,0.072963,68538.0,68537.0,0.072963]
[1729445236968,0.10869952,68538.0,68537.0,0.072963]
[1729445237271,0.15349283,68538.0,68537.0,0.072963]
[1729445237773,0.15349283,68538.0,68537.0,0.073963]
[1729445240266,0.072963,68538.0,68537.0,0.073963]
[1729445241475,0.072963,68538.0,68537.0,0.05163619]
[1729445241670,0.10869935,68538.0,68537.0,0.05163619]
[1729445241869,0.15349244,68538.0,68537.0,0.05163619]
[1729445242268,0.15349244,68538.0,68537.0,0.07770001]
[1729445242766,0.15349244,68538.0,68537.0,0.43850001]
[1729445242968,0.15349244,68538.0,68537.0,0.41243619]
[1729445243973,0.072963,68538.0,68537.0,0.89664784]
[1729445244180,0.02629939,68544.0,68537.0,0.89664784]
[1729445244371,0.072962,68539.0,68538.0,0.23431909]
[1729445247577,0.072962,68539.0,68538.0,0.23340217]
[1729445251082,0.072962,68539.0,68537.0,0.05063619]
[1729445251083,0.072963,68538.0,68537.0,0.05063619]
[1729445251380,0.15349341,68538.0,68537.0,0.05063619]
[1729445252269,0.072963,68538.0,68537.0,0.05063619]
[1729445252469,0.072963,68538.0,68537.0,0.05163619]
[1729445252674,0.1534934,68538.0,68537.0,0.05163619]
[1729445253074,0.1534934,68538.0,68537.0,0.001]
[1729445258493,0.03573678,68538.0,68537.0,0.073964]
[1729445258679,0.03573678,68538.0,68537.0,0.072964]
[1729445259098,0.072958,68543.0,68542.0,0.072958]
[1729445259287,0.072958,68543.0,68542.0,0.54012663]
[1729445261892,0.072958,68543.0,68542.0,0.62769308]
[1729445262188,0.072958,68543.0,68542.0,0.54012663]
[1729445262786,0.072958,68543.0,68542.0,0.5662992]
[1729445264290,0.072958,68543.0,68542.0,0.65386335]
[1729445266193,0.20582499,68543.0,68542.0,0.18246117]
[1729445266393,0.20582499,68543.0,68542.0,0.25541917]
[1729445267294,0.15348573,68543.0,68542.0,0.25541917]
[1729445267594,0.15348573,68543.0,68542.0,0.072958]
[1729445268597,0.15348573,68543.0,68542.0,0.09888284]
[1729445269087,0.20582499,68543.0,68542.0,0.09888284]
[1729445269288,0.15348573,68543.0,68542.0,0.09888284]
[1729445270383,0.20582499,68543.0,68542.0,0.09888284]
[1729445270585,0.15348573,68543.0,68542.0,0.09888284]
[1729445272292,0.2698293,68543.0,68542.0,0.09888284]
[1729445273082,0.08052773,68543.0,68542.0,0.09888284]
[1729445274297,0.05233926,68547.0,68542.0,0.09888284]
[1729445274298,0.26225279,68544.0,68543.0,0.072957]
[1729445274499,0.26225279,68544.0,68543.0,0.18140366]
[1729445276702,0.26225279,68544.0,68543.0,0.18139623]
[1729445278695,0.072957,68544.0,68543.0,0.18139623]
[1729445281193,0.072957,68544.0,68543.0,0.26896038]
[1729445281910,0.072957,68544.0,68543.0,0.18139623]
[1729445284807,0.072957,68544.0,68543.0,0.18129977]
[1729445288312,0.072957,68544.0,68543.0,0.31041403]
[1729445289209,0.11774913,68544.0,68542.0,0.01270948]
[1729445289512,0.08052771,68543.0,68538.0,0.42523491]
[1729445289716,0.08052771,68542.0,68538.0,0.42523491]
[1729445289901,0.08052771,68541.0,68538.0,0.42523491]
[1729445290102,0.08052771,68540.0,68539.0,0.072962]
[1729445295015,0.03573559,68543.0,68541.0,0.072959]
[1729445295207,0.08052772,68543.0,68541.0,0.072959]
[1729445295406,0.08052772,68542.0,68541.0,0.072959]
[1729445296104,0.072957,68544.0,68541.0,0.311848]
[1729445296316,0.072957,68544.0,68542.0,0.238889]
[1729445296516,0.072957,68544.0,68541.0,0.072959]
[1729445296517,0.072957,68544.0,68543.0,0.10898411]
[1729445301411,0.072957,68544.0,68543.0,0.18194111]
[1729445303520,0.072957,68544.0,68543.0,0.31192193]
[1729445304224,0.072957,68544.0,68538.0,0.06443491]
[1729445304421,0.0805277,68543.0,68542.0,0.072958]
[1729445304813,0.072957,68544.0,68542.0,0.072958]
[1729445305823,0.072957,68544.0,68543.0,0.072957]
[1729445306022,0.072954,68547.0,68546.0,0.072954]
[1729445307019,0.15347499,68547.0,68546.0,0.072954]
[1729445307419,0.072954,68547.0,68546.0,0.072954]
[1729445308517,0.15347472,68547.0,68546.0,0.072954]
[1729445311217,0.35127671,68556.0,68546.0,0.56598886]
[1729445311218,0.3873406,68551.0,68546.0,0.56598886]
[1729445311420,0.072952,68548.0,68547.0,0.23953049]
[1729445314330,0.072952,68548.0,68547.0,0.31248349]
[1729445315224,0.072952,68548.0,68547.0,0.31079683]
[1729445317333,0.072952,68548.0,68547.0,0.072953]
[1729445318541,0.072952,68548.0,68547.0,0.31095879]
[1729445319140,0.03644625,68548.0,68547.0,0.31095879]
[1729445319332,0.03644625,68548.0,68547.0,0.26904284]
[1729445325441,0.3608,68553.0,68547.0,0.19609044]
[1729445325736,0.0366,68558.0,68555.0,0.072942]
[1729445325737,0.072944,68556.0,68555.0,0.072942]
[1729445326042,0.072944,68556.0,68555.0,0.18152318]
[1729445326228,0.15345494,68556.0,68555.0,0.072942]
[1729445327742,0.08051094,68556.0,68555.0,0.072942]
[1729445330344,0.15345465,68556.0,68555.0,0.072942]
[1729445334438,0.072944,68556.0,68555.0,0.18075502]
[1729445337439,0.072944,68556.0,68555.0,0.26825457]
[1729445338049,0.072944,68556.0,68555.0,0.18075502]
[1729445341441,0.10867248,68556.0,68555.0,0.072942]
[1729445341664,0.15345571,68556.0,68555.0,0.072942]
[1729445349375,0.072944,68556.0,68555.0,0.18073791]
[1729445352670,0.072944,68556.0,68555.0,0.26823746]
[1729445352970,0.072944,68556.0,68555.0,0.072942]
[1729445353176,0.072944,68556.0,68555.0,0.18080886]
[1729445353374,0.072944,68556.0,68555.0,0.26830841]
[1729445353770,0.072944,68556.0,68555.0,0.26834927]
[1729445353970,0.072944,68556.0,68555.0,0.18080886]
[1729445354573,0.072944,68556.0,68555.0,0.30951636]
[1729445355175,0.072944,68556.0,68555.0,0.30962919]
[1729445356476,0.15345525,68556.0,68550.0,0.31769669]
[1729445356671,0.08051125,68555.0,68550.0,0.31693669]
[1729445356872,0.08051125,68554.0,68553.0,0.072947]
[1729445358178,0.08051042,68554.0,68553.0,0.072947]
[1729445363473,0.12527055,68558.0,68556.0,0.072943]
[1729445363474,0.072942,68558.0,68556.0,0.072943]
[1729445363669,0.072942,68558.0,68557.0,0.10887083]
[1729445364074,0.072942,68558.0,68557.0,0.18181283]
[1729445367092,0.072942,68558.0,68557.0,0.26939622]
[1729445367903,0.072942,68558.0,68557.0,0.26940129]
[1729445368773,0.03644103,68558.0,68557.0,0.26940423]
[1729445369585,0.03644103,68558.0,68557.0,0.1818179]
[1729445370394,0.03644103,68558.0,68557.0,0.26940423]
[1729445371485,0.03644103,68558.0,68557.0,0.072942]
[1729445372082,0.02682198,68559.0,68558.0,0.072941]
[1729445372387,0.072939,68560.0,68559.0,0.072939]
[1729445372995,0.072939,68560.0,68559.0,0.11672897]
[1729445373485,0.072939,68560.0,68551.0,0.43378799]
[1729445373486,0.3608,68562.0,68561.0,0.072938]
[1729445373689,0.3608,68562.0,68561.0,0.11672615]
[1729445373985,0.3608,68562.0,68561.0,0.072938]
[1729445374391,0.3608,68562.0,68561.0,0.11671399]
[1729445375388,0.3608,68562.0,68561.0,0.072938]
[1729445376389,0.072935,68564.0,68563.0,0.072936]
[1729445378386,0.04477955,68564.0,68555.0,0.34786425]
[1729445378691,0.18925515,68559.0,68558.0,0.072941]
[1729445378991,0.0805051,68559.0,68558.0,0.072941]
[1729445381996,0.08050521,68559.0,68558.0,0.072941]
[1729445386498,0.072938,68562.0,68560.0,0.072938]
[1729445386806,0.072938,68562.0,68561.0,0.27035087]
[1729445388002,0.072938,68562.0,68561.0,0.18285337]
[1729445391308,0.072938,68562.0,68561.0,0.27035087]
[1729445392099,0.072938,68562.0,68561.0,0.18285337]
[1729445393502,0.15344283,68562.0,68561.0,0.072938]
[1729445401411,0.10866343,68562.0,68561.0,0.072938]
[1729445401615,0.072938,68562.0,68561.0,0.2704256]
[1729445401906,0.072938,68562.0,68561.0,0.1829281]
[1729445402904,0.072938,68562.0,68561.0,0.31407994]
[1729445404509,0.072938,68562.0,68561.0,0.1829281]
[1729445404806,0.072938,68562.0,68561.0,0.18299851]
[1729445409121,0.072938,68562.0,68561.0,0.2559936]
[1729445409314,0.072938,68562.0,68561.0,0.1830556]
[1729445409512,0.072938,68562.0,68561.0,0.07299509]
[1729445409712,0.072938,68561.0,68560.0,0.07299509]
[1729445410014,0.072938,68561.0,68560.0,0.18316158]
[1729445410720,0.072938,68561.0,68560.0,0.18315862]
[1729445410921,0.072938,68561.0,68560.0,0.11016649]
[1729445411314,0.072938,68561.0,68560.0,0.1831586]
[1729445413641,0.072938,68561.0,68560.0,0.11016649]
[1729445414543,0.072938,68561.0,68560.0,0.18315336]
[1729445414743,0.072938,68561.0,68560.0,0.11016649]
[1729445415339,0.072938,68561.0,68559.0,0.07294]
[1729445415340,0.072939,68560.0,68559.0,0.07294]
[1729445415541,0.072939,68560.0,68559.0,0.11014263]
[1729445416441,0.03572628,68560.0,68558.0,0.072941]
[1729445416638,0.3608,68565.0,68558.0,0.072941]
[1729445416639,0.07294,68559.0,68558.0,0.072941]
[1729445418250,0.10866659,68559.0,68558.0,0.072941]
[1729445419738,0.10866601,68559.0,68558.0,0.072941]
[1729445423547,0.38703334,68565.0,68558.0,0.072941]
[1729445423548,0.29943387,68565.0,68558.0,0.56736405]
[1729445423751,0.29943387,68565.0,68564.0,0.11677576]
[1729445423945,0.29943387,68565.0,68564.0,0.51058771]
[1729445424144,0.37236787,68565.0,68564.0,0.51058771]
[1729445424546,0.37236787,68565.0,68564.0,0.50642173]
[1729445429846,0.37236787,68565.0,68564.0,0.38964597]
[1729445431559,0.37994204,68565.0,68561.0,0.11677576]
[1729445431862,0.072937,68562.0,68561.0,0.11677576]
[1729445432052,0.11771826,68562.0,68561.0,0.11677576]
[1729445432257,0.15344517,68562.0,68561.0,0.11677576]
[1729445434255,0.10866393,68562.0,68561.0,0.11677576]
[1729445434565,0.15344521,68562.0,68561.0,0.11677576]
[1729445438558,0.072937,68562.0,68561.0,0.22592656]
[1729445441357,0.072937,68562.0,68561.0,0.1091508]
[1729445443865,0.072937,68562.0,68561.0,0.1820888]
[1729445444066,0.072937,68562.0,68561.0,0.18211412]
[1729445446684,0.15344526,68562.0,68561.0,0.0019508]
[1729445446886,0.07294,68560.0,68553.0,0.072947]
[1729445447083,0.08050826,68559.0,68558.0,0.072941]
[1729445450676,0.15344826,68559.0,68558.0,0.072941]
[1729445453579,0.07294,68559.0,68558.0,0.18258516]
[1729445455886,0.07294,68559.0,68558.0,0.072941]
[1729445456984,0.07294,68559.0,68558.0,0.18270732]
[1729445459690,0.07294,68559.0,68558.0,0.31350642]
[1729445459987,0.07294,68559.0,68558.0,0.18270732]
[1729445460188,0.07294,68559.0,68558.0,0.31352697]
[1729445460389,0.07294,68559.0,68558.0,0.18270732]
[1729445460790,0.07294,68559.0,68558.0,0.31356575]
[1729445468689,0.11694746,68559.0,68552.0,0.3608]
[1729445468890,0.08050732,68558.0,68552.0,0.3608]
[1729445469294,0.08050732,68558.0,68557.0,0.072942]
[1729445475504,0.08050732,68558.0,68552.0,0.3608]
[1729445475505,0.08050776,68558.0,68552.0,0.3608]
[1729445475696,0.08050776,68557.0,68552.0,0.3608]
[1729445475896,0.08050776,68556.0,68552.0,0.3608]
[1729445476108,0.08050776,68555.0,68554.0,0.072946]
[1729445476804,0.072942,68558.0,68556.0,0.072943]
[1729445477001,0.072942,68558.0,68557.0,0.24110662]
[1729445477205,0.072942,68558.0,68557.0,0.31404862]
[1729445480910,0.09912503,68558.0,68557.0,0.31404862]
[1729445482014,0.09912503,68558.0,68557.0,0.31385214]
[1729445485217,0.09912503,68558.0,68557.0,0.072942]
[1729445486415,0.09912503,68558.0,68557.0,0.31388631]
[1729445487307,0.072942,68558.0,68557.0,0.31388631]
[1729445490819,0.02576184,68559.0,68558.0,0.072941]
[1729445491017,0.07294,68560.0,68558.0,0.31388531]
[1729445491317,0.07294,68560.0,68559.0,0.24094431]
[1729445491715,0.07294,68560.0,68558.0,0.072941]
[1729445491716,0.08050481,68560.0,68558.0,0.072941]
[1729445491916,0.08050481,68559.0,68558.0,0.072941]
[1729445493009,0.15344481,68559.0,68558.0,0.072941]
[1729445498808,0.00469702,68560.0,68558.0,0.63796645]
[1729445499121,0.3608,68564.0,68559.0,0.56502545]
[1729445499317,0.3608,68564.0,68558.0,0.072941]
[1729445499318,0.072938,68561.0,68560.0,0.69635001]
[1729445499523,0.072938,68561.0,68560.0,0.56502545]
[1729445499713,0.072938,68561.0,68560.0,0.69634704]
[1729445500311,0.072938,68561.0,68560.0,0.56502545]
[1729445500923,0.072938,68561.0,68560.0,0.39202102]
[1729445505630,0.072938,68561.0,68560.0,0.56368719]
[1729445506426,0.072938,68561.0,68560.0,0.56154158]
[1729445506726,0.08050492,68563.0,68558.0,0.072941]
[1729445506928,0.08050492,68562.0,68558.0,0.072941]
[1729445507126,0.07294,68559.0,68558.0,0.072941]
[1729445508730,0.15344457,68559.0,68558.0,0.072941]
[1729445511427,0.15344458,68559.0,68558.0,0.072941]
[1729445513933,0.03644138,68559.0,68558.0,0.31086036]
[1729445521933,0.07216671,68559.0,68558.0,0.072941]
[1729445522129,0.03644138,68559.0,68558.0,0.072941]
[1729445522335,0.11694599,68559.0,68558.0,0.072941]
[1729445522938,0.11694599,68559.0,68558.0,0.05162242]
[1729445524239,0.11694594,68559.0,68558.0,0.05162242]
[1729445526531,0.08050456,68559.0,68554.0,0.3608]
[1729445526733,0.072944,68556.0,68554.0,0.3608]
[1729445527033,0.072944,68556.0,68555.0,0.072945]
[1729445527235,0.10866942,68556.0,68555.0,0.072945]
[1729445527530,0.15344881,68556.0,68555.0,0.072945]
[1729445528936,0.072944,68556.0,68555.0,0.30846008]
[1729445529932,0.09930509,68556.0,68555.0,0.30846008]
[1729445530742,0.09930509,68556.0,68555.0,0.23551508]
[1729445530930,0.09930509,68556.0,68555.0,0.10744489]
[1729445531344,0.072945,68555.0,68554.0,0.07295343]
[1729445531540,0.072947,68553.0,68552.0,0.07295343]
[1729445531842,0.09930509,68556.0,68551.0,0.07295343]
[1729445532033,0.072948,68552.0,68551.0,0.07295343]
[1729445532540,0.072948,68552.0,68548.0,0.07295343]
[1729445532541,0.07295,68550.0,68548.0,0.07295343]
[1729445532729,0.79844,68552.0,68547.0,0.07295343]
[1729445532730,0.0327,68549.0,68547.0,0.07295343]
[1729445532955,0.0327,68549.0,68546.0,0.07295343]
[1729445533344,0.0327,68549.0,68544.0,0.00218813]
[1729445533345,0.275,68549.0,68544.0,0.00218813]
[1729445533641,0.315253,68547.0,68546.0,0.05830433]
[1729445533839,0.162553,68547.0,68546.0,0.04373175]
[1729445534038,0.600193,68547.0,68546.0,0.01364393]
[1729445534449,0.072959,68541.0,68540.0,0.05830433]
[1729445534644,0.433759,68541.0,68540.0,0.05830433]
[1729445535345,0.3608,68541.0,68538.0,0.05830433]
[1729445535644,0.0689,68540.0,68538.0,0.05830433]
[1729445535947,0.072962,68539.0,68538.0,0.05830433]
[1729445536331,0.072963,68538.0,68537.0,0.05830433]
[1729445536948,0.072965,68536.0,68533.0,0.434528]
[1729445537135,0.072965,68536.0,68533.0,0.433768]
[1729445537349,0.072966,68535.0,68533.0,0.433768]
[1729445537640,0.0689,68540.0,68533.0,0.433768]
[1729445538038,0.072966,68535.0,68533.0,0.433768]
[1729445541443,0.072966,68535.0,68533.0,0.072968]
[1729445541744,0.072967,68534.0,68533.0,0.072968]
[1729445543445,0.0689,68540.0,68534.0,0.072967]
[1729445543837,0.0689,68540.0,68534.0,0.13127133]
[1729445544035,0.072964,68537.0,68534.0,0.13127133]
[1729445544451,0.072964,68537.0,68535.0,0.05830433]
[1729445544840,0.072964,68537.0,68534.0,0.13127133]
[1729445545041,0.072966,68535.0,68534.0,0.05830433]
[1729445545247,0.07297,68531.0,68530.0,0.3608]
[1729445552563,0.02564047,68531.0,68527.0,0.09150433]
[1729445552864,0.072973,68528.0,68527.0,0.09150433]
[1729445554860,0.072973,68528.0,68527.0,0.0332]
[1729445559956,0.0992075,68528.0,68527.0,0.0332]
[1729445566975,0.27743425,68533.0,68527.0,0.42001055]